{"text_format":"1","workbook":"xlsx","n_sheets":1,"sheets":["Feuil1"],"not_rendered":{"charts":0,"images":0,"macros":1,"external_links":0,"defined_names":0,"comments":0,"pivot_tables":0},"unopened":[],"bounds":{"document_bytes":16777216,"sheet_cells":100000,"rows_first":2000,"rows_last":500,"rows_between":2000,"halvings":0,"cell_chars":16384,"cell_head_chars":4096},"cells_cut":0,"cells_raw":0,"read":"whole","date_system":"1900"}

{"sheet":"Feuil1","index":0,"n_rows":29,"n_cols":14,"rows_kept":29,"cut":false,"hidden":false,"merged":[]}
["Données :",null,null,null,null,"Totalisations en fonction des couleurs :",null,null,null,null,null,null,"Exemples de codes couleur :"]
["Plonk",10,null,null,null,"Jaune",{"$f":"SOMME_SI_COULEURFOND($B$2:$B$8,65535)","v":160},null,null,null,null,null,null,{"$f":"CODE_COULEURFOND(M2)","v":5287936}]
["Grouik",30,null,null,null,"Bleu",{"$f":"SOMME_SI_COULEURFOND($B$2:$B$8,15773696)","v":100},null,null,null,null,null,null,{"$f":"CODE_COULEURFOND(M3)","v":8696052}]
["Birk",50,null,null,null,"Blanc",{"$f":"SOMME_SI_COULEURFOND($B$2:$B$8,16777215)","v":55},null,null,null,null,null,null,{"$f":"CODE_COULEURFOND(M4)","v":1137094}]
["Basiboli",20,null,null,null,null,null,null,null,null,null,null,null,{"$f":"CODE_COULEURFOND(M5)","v":65535}]
["Xanos",100,null,null,null,null,null,null,null,null,null,null,null,{"$f":"CODE_COULEURFOND(M6)","v":15773696}]
["Fumax",35,null,null,null,null,null,null,null,null,null,null,null,{"$f":"CODE_COULEURFOND(M7)","v":16777215}]
["Boub",100,null,null,null,null,null,null,null,null,null,null,null,{"$f":"CODE_COULEURFOND(M8)","v":0}]
[null,null,null,null,null,null,null,null,null,null,null,null,null,{"$f":"CODE_COULEURFOND(M9)","v":11854022}]
["Total",{"$f":"SUM(B2:B9)","v":345}]
[]
[]
[]
[]
["Données :",null,"Codecouleur"]
["Plonk",10,{"$f":"CODE_COULEURFOND(B16)","v":65535}]
["Grouik",30,{"$f":"CODE_COULEURFOND(B17)","v":49407}]
["Birk",50,{"$f":"CODE_COULEURFOND(B18)","v":65535}]
["Basiboli",20,{"$f":"CODE_COULEURFOND(B19)","v":16777215}]
["Xanos",100,{"$f":"CODE_COULEURFOND(B20)","v":65535}]
["Fumax",35,{"$f":"CODE_COULEURFOND(B21)","v":16777215}]
["Boub",100,{"$f":"CODE_COULEURFOND(B22)","v":15773696}]
[]
["Total",{"$f":"SUM(B16:B23)","v":345}]
[]
["Totalisation des montants jaunes > 20 :",null,null,null,{"$f":"SUMIFS($B$16:$B$22,$C$16:$C$22,65535,$B$16:$B$22,\">20\")","v":150}]
[]
[]
["Plus d'infos :","https://www.auditsi.eu/?p=11383"]